bitfinex-derivatives/quotes_BNBF0:USTF0_20251010
["timestamp","ask_amount","ask_price","bid_price","bid_amount"]
[1760117151197,1.1755452,1227.5,1225.4,0.52158233]
[1760117151396,1.1755452,1227.5,1225.2,0.14178387]
[1760117151698,1.1755452,1227.5,1225.3,0.52162866]
[1760117151894,1.1755452,1227.5,1225.4,0.52162866]
[1760117152099,1.1755452,1227.5,1225.2,0.14178387]
[1760117152400,1.1755452,1227.5,1225.3,0.5216295]
[1760117152695,1.1755452,1227.6,1225.4,0.5216295]
[1760117152899,1.1755452,1227.6,1225.2,0.14178387]
[1760117153097,1.1755452,1227.5,1225.3,0.52184087]
[1760117153296,1.1755452,1227.5,1225.4,0.52184087]
[1760117153595,1.1755452,1227.8,1225.5,0.52184087]
[1760117153899,1.1755452,1227.8,1225.6,0.52184087]
[1760117154099,1.1755452,1227.8,1225.7,0.52184087]
[1760117154300,1.1755452,1227.8,1225.2,0.74144222]
[1760117154499,1.1755452,1227.8,1225.3,0.52232248]
[1760117154700,1.1755452,1227.8,1225.4,0.52232248]
[1760117154899,1.1755452,1227.8,1225.5,0.52232248]
[1760117155096,1.1755452,1227.8,1225.6,0.52232248]
[1760117155399,1.1755452,1227.7,1225.7,0.52232248]
[1760117155597,1.1755452,1227.7,1225.2,0.74144222]
[1760117155799,1.1755452,1227.7,1225.3,0.52205797]
[1760117155997,1.1755452,1227.7,1225.4,0.52205797]
[1760117156198,1.1755452,1227.7,1225.5,0.52205797]
[1760117156397,1.1755452,1227.7,1225.6,0.52205797]
[1760117156596,1.1755452,1227.9,1225.7,0.52205797]
[1760117156896,1.1755452,1227.9,1225.5,0.59965835]
[1760117156897,1.1755452,1228.0,1225.8,0.52205797]
[1760117157096,1.1755452,1228.1,1225.9,0.52205797]
[1760117157300,1.1755452,1228.1,1226.0,0.52205797]
[1760117157500,1.1755452,1228.1,1225.5,0.59965835]
[1760117157702,1.1755452,1228.1,1225.6,0.52194655]
[1760117157901,1.1755452,1228.1,1225.7,0.52194655]
[1760117158097,1.1755452,1228.1,1225.8,0.52194655]
[1760117158302,1.1755452,1228.1,1225.9,0.52194655]
[1760117158601,1.1755452,1228.1,1226.0,0.52194655]
[1760117158801,1.1755452,1228.1,1225.4,0.59965835]
[1760117158997,1.1755452,1228.1,1225.5,0.5219565]
[1760117159201,1.1755452,1228.1,1225.6,0.5219565]
[1760117159401,1.1755452,1228.1,1225.7,0.5219565]
[1760117159601,1.1755452,1228.1,1225.8,0.5219565]
[1760117159901,1.1755452,1228.0,1225.9,0.5219565]
[1760117160100,1.1755452,1228.0,1226.0,0.5219565]
[1760117160298,1.1755452,1228.0,1225.4,0.59965835]
[1760117160498,1.1755452,1228.0,1225.5,0.52194922]
[1760117160697,1.1755452,1228.0,1225.6,0.52194922]
[1760117160900,1.1755452,1228.0,1225.7,0.52194922]
[1760117161098,1.1755452,1228.2,1225.8,0.52194922]
[1760117161301,1.1755452,1228.2,1225.9,0.52194922]
[1760117161503,1.1755452,1228.1,1226.0,0.52194922]
[1760117161703,1.1755452,1228.2,1226.1,0.52194922]
[1760117161902,1.1755452,1228.2,1226.2,0.52194922]
[1760117162104,1.1755452,1228.2,1226.3,0.52194922]
[1760117162305,1.1755452,1228.2,1226.0,0.59965835]
[1760117162505,1.1755452,1228.2,1226.1,0.52174725]
[1760117162702,1.1755452,1228.6,1226.2,0.52174725]
[1760117163006,1.1755452,1228.5,1225.6,0.59965835]
[1760117163301,1.1755452,1228.4,1225.7,1.12146699]
[1760117163505,1.1755452,1228.4,1225.8,0.52180864]
[1760117163704,1.1755452,1228.3,1225.9,0.52180864]
[1760117163906,1.1755452,1228.2,1226.0,0.52180864]
[1760117164104,1.1755452,1228.2,1226.1,0.52180864]
[1760117164301,1.1755452,1228.2,1225.6,0.59965835]
[1760117164302,1.1755452,1228.3,1225.6,0.59965835]
[1760117164505,1.1755452,1228.1,1225.7,0.52176817]
[1760117164706,1.1755452,1227.9,1225.8,0.52176817]
[1760117164907,1.1755452,1227.9,1225.9,0.52176817]
[1760117165105,1.1755452,1227.9,1226.0,0.52176817]
[1760117165405,1.1755452,1227.7,1225.5,0.59965835]
[1760117165610,1.1755452,1227.7,1225.6,0.52182071]
[1760117165804,1.1755452,1227.7,1225.7,0.52182071]
[1760117166009,1.1755452,1227.7,1225.8,0.52182071]
[1760117166209,1.1755452,1228.1,1225.9,0.52182071]
[1760117166407,1.1755452,1228.2,1226.0,0.52182071]
[1760117166610,1.1755452,1228.2,1226.1,0.52182071]
[1760117166808,1.1755452,1228.2,1225.6,0.59965835]
[1760117167009,1.1755452,1228.2,1225.7,0.52177177]
[1760117167212,1.1755452,1228.2,1225.8,0.52177177]
[1760117167508,1.1755452,1228.2,1225.9,0.52177177]
[1760117167712,1.1755452,1228.2,1226.0,0.52177177]
[1760117167911,1.1755452,1228.2,1226.1,0.52177177]
[1760117168109,1.1755452,1228.2,1225.6,0.59965835]
[1760117168313,1.1755452,1228.1,1225.7,0.52179322]
[1760117168510,1.1755452,1228.4,1225.8,0.52179322]
[1760117168714,1.1755452,1228.4,1225.9,0.52179322]
[1760117168912,1.1755452,1228.4,1226.0,0.52179322]
[1760117169210,1.1755452,1228.4,1226.1,0.52179322]
[1760117169409,1.1755452,1228.4,1225.5,0.59965835]
[1760117169613,1.1755452,1228.4,1225.6,0.5217529]
[1760117169813,1.1755452,1228.3,1225.7,0.5217529]
[1760117170008,1.1755452,1228.4,1225.8,0.5217529]
[1760117170209,1.1755452,1228.4,1225.9,0.5217529]
[1760117170409,1.1755452,1228.4,1226.0,0.5217529]
[1760117170611,1.1755452,1228.5,1226.1,0.5217529]
[1760117170809,1.1755452,1228.5,1225.5,0.59965835]
[1760117171112,1.1755452,1228.4,1225.6,0.52176359]
[1760117171312,1.1755452,1228.1,1225.7,0.52176359]
[1760117171509,1.1755452,1228.1,1225.8,0.52176359]
[1760117171807,1.1755452,1228.1,1225.9,0.52176359]
[1760117172013,1.1755452,1228.3,1226.0,0.52176359]
[1760117172212,1.1755452,1228.2,1225.4,0.59965835]
[1760117172515,1.1755452,1228.1,1225.5,0.52181291]
[1760117172712,1.1755452,1228.1,1225.6,0.52181291]
[1760117172912,1.1755452,1228.1,1225.7,0.52181291]
[1760117173110,1.1755452,1228.1,1225.8,0.52181291]
[1760117173314,1.1755452,1228.1,1225.9,0.52181291]
[1760117173514,1.1755452,1228.1,1226.0,0.52181291]
[1760117173709,1.1755452,1228.1,1225.4,0.59965835]
[1760117173915,6.3077008,1234.1,1225.2,0.14178387]
[1760117173916,1.1755452,1228.3,1225.5,1.12149622]
[1760117174115,1.1755452,1228.3,1225.6,0.52183787]
[1760117174312,1.1755452,1228.3,1225.7,0.52183787]
[1760117174514,1.1755452,1228.3,1225.8,0.52183787]
[1760117174717,1.1755452,1228.3,1225.9,0.52183787]
[1760117174914,1.1755452,1228.1,1226.0,0.52183787]
[1760117175117,1.1755452,1228.0,1225.5,0.59965835]
[1760117175314,1.1755452,1227.9,1225.6,0.52197198]
[1760117175519,1.1755452,1227.9,1225.7,0.52197198]
[1760117175718,1.1755452,1227.9,1225.8,0.52197198]
[1760117175915,1.1755452,1227.9,1225.9,0.52197198]
[1760117176218,1.1755452,1228.0,1225.4,0.59965835]
[1760117176515,1.1755452,1228.0,1225.5,0.52195589]
[1760117176814,1.1755452,1228.0,1225.6,0.52195589]
[1760117177017,1.1755452,1228.1,1225.7,0.52195589]
[1760117177217,1.1755452,1228.1,1225.8,0.52195589]
[1760117177415,1.1755452,1228.1,1225.9,0.52195589]
[1760117177713,1.1755452,1228.1,1226.0,0.52195589]
[1760117178014,1.1755452,1228.1,1225.5,0.59965835]
[1760117178318,1.1755452,1228.1,1225.6,0.52192554]
[1760117178618,1.1755452,1228.1,1225.7,0.52192554]
[1760117178815,1.1755452,1228.2,1225.8,0.52192554]
[1760117179113,1.1755452,1228.2,1225.5,0.59965835]
[1760117179114,1.1755452,1228.2,1225.9,0.52192554]
[1760117179315,1.1755452,1228.2,1226.0,0.52192554]
[1760117179618,1.1755452,1228.1,1226.1,0.52192554]
[1760117179818,1.1755452,1228.1,1225.5,0.59965835]
[1760117180118,1.1755452,1228.1,1225.6,0.5219298]
[1760117180318,1.1755452,1228.5,1225.7,0.5219298]
[1760117180617,1.1755452,1228.5,1225.8,0.5219298]
[1760117180814,6.3077008,1232.4,1225.6,0.59965835]
[1760117180815,1.1755452,1229.1,1226.0,0.59965835]
[1760117181014,1.1755452,1229.1,1226.1,0.5219298]
[1760117181318,1.1755452,1228.5,1226.2,1.12158815]
[1760117181520,1.1755452,1228.5,1226.3,0.5219298]
[1760117181717,1.1755452,1228.6,1226.4,0.5219298]
[1760117182021,1.1755452,1228.6,1226.5,0.5219298]
[1760117182221,1.1755452,1228.7,1226.6,0.5219298]
[1760117182422,1.1755452,1228.7,1226.7,0.5219298]
[1760117182617,1.1755452,1228.7,1226.8,0.5219298]
[1760117182818,1.1755452,1228.7,1226.5,0.59965835]
[1760117183022,1.1755452,1228.7,1226.6,0.5214432]
[1760117183321,1.1755452,1228.7,1226.7,0.5214432]
[1760117183522,1.1755452,1228.7,1226.8,0.5214432]
[1760117183722,1.1755452,1228.8,1226.4,0.59965835]
[1760117183924,1.1755452,1228.7,1226.5,0.52125948]
[1760117184117,1.1755452,1228.7,1226.3,0.59965835]
[1760117184118,1.1755452,1228.7,1226.6,0.52125948]
[1760117184320,1.1755452,1228.7,1226.7,0.52125948]
[1760117184520,1.1755452,1228.7,1226.3,0.59965835]
[1760117184725,1.1755452,1228.7,1226.4,0.52108571]
[1760117185022,1.1755452,1228.8,1226.5,0.52108571]
[1760117185325,1.1755452,1229.0,1226.6,0.52108571]
[1760117185521,1.1755452,1229.0,1226.7,0.52108571]
[1760117185824,1.1755452,1229.0,1226.8,0.52108571]
[1760117186022,1.1755452,1229.0,1226.3,0.59965835]
[1760117186221,1.1755452,1229.0,1226.4,0.52097561]
[1760117186422,1.1755452,1229.0,1226.5,0.52097561]
[1760117186625,1.1755452,1229.0,1226.6,0.52097561]
[1760117186927,1.1755452,1229.0,1226.7,0.52097561]
[1760117187222,1.1755452,1229.0,1226.8,0.52097561]
[1760117187424,1.1755452,1229.0,1226.2,0.59965835]
[1760117187620,1.1755452,1229.0,1226.3,0.52078702]
[1760117187924,1.1755452,1229.0,1226.4,0.52078702]
[1760117188122,1.1755452,1229.0,1226.5,0.52078702]
[1760117188324,1.1755452,1229.1,1226.6,0.52078702]
[1760117188521,1.1755452,1229.1,1226.7,0.52078702]
[1760117188726,1.1755452,1229.0,1226.2,0.59965835]
[1760117188921,1.1755452,1228.8,1226.3,0.52069581]
[1760117189123,1.1755452,1228.8,1226.4,0.52069581]
[1760117189428,1.1755452,1228.7,1226.5,0.52069581]
[1760117189628,1.959242,1229.7,1226.1,0.59965835]
[1760117189629,1.1755452,1228.8,1226.1,0.59965835]
[1760117189928,1.1755452,1228.8,1226.2,0.52064411]
[1760117190223,1.1755452,1228.9,1226.3,0.52064411]
[1760117190427,1.1755452,1228.9,1226.4,0.52064411]
[1760117190625,1.1755452,1228.8,1226.5,0.52064411]
[1760117190828,1.1755452,1228.8,1226.0,0.59965835]
[1760117191029,1.1755452,1228.8,1226.1,0.52059282]
[1760117191228,1.1755452,1228.8,1226.2,0.52059282]
[1760117191433,1.1755452,1228.8,1226.3,0.52059282]
[1760117191624,1.1755452,1228.6,1226.4,0.52059282]
[1760117191929,1.1755452,1228.6,1225.9,0.59965835]
[1760117192124,1.1755452,1228.7,1226.0,0.52057966]
[1760117192324,1.1755452,1228.7,1226.1,0.52057966]
[1760117192522,1.1755452,1228.7,1226.2,0.52057966]
[1760117192727,1.1755452,1228.7,1226.3,0.52057966]
[1760117193023,1.1755452,1228.7,1226.4,0.52057966]
[1760117193225,1.1755452,1228.5,1225.9,0.59965835]
[1760117193425,1.1755452,1228.5,1226.0,0.52056524]
[1760117193626,1.1755452,1228.5,1226.1,0.52056524]
[1760117193824,1.1755452,1228.5,1226.2,0.52056524]
[1760117194025,1.1755452,1228.5,1226.3,0.52056524]
[1760117194326,1.1755452,1228.5,1225.9,0.59965835]
[1760117194529,0.14180727,1228.0,1226.0,0.52058962]
[1760117194724,0.14180727,1228.0,1226.1,0.52058962]
[1760117194928,0.14180727,1228.0,1226.2,0.52058962]
[1760117195124,0.14180727,1228.0,1225.8,0.59965835]
[1760117195329,0.14180727,1228.0,1225.9,0.52065096]
[1760117195530,0.14180727,1228.0,1226.0,0.52065096]
[1760117195726,0.14180727,1228.0,1226.1,0.52065096]
[1760117196026,0.14180727,1228.0,1226.2,0.52065096]
[1760117196226,0.14180727,1228.0,1226.3,0.52069984]
[1760117196530,0.14180727,1228.0,1226.4,0.52069523]
[1760117196831,0.14180727,1228.0,1226.5,0.52069523]
[1760117197029,0.14180727,1228.0,1226.6,0.52069523]
[1760117197325,0.14180727,1228.0,1225.8,0.59965835]
[1760117197530,0.14180727,1228.0,1225.9,0.52066534]
[1760117197727,0.14180727,1228.0,1226.0,1.12032369]
[1760117197930,0.14180727,1228.0,1226.1,0.52066534]
[1760117198126,0.14180727,1228.0,1226.2,0.52066534]
[1760117198328,0.14180727,1228.0,1226.3,0.52066534]
[1760117198532,0.14180727,1228.0,1225.9,0.59965835]
[1760117198732,0.14180727,1228.0,1226.0,0.52074027]
[1760117198934,0.14180727,1228.0,1226.1,0.52074027]
[1760117199127,0.14180727,1228.0,1226.2,0.52074027]
[1760117199329,0.14180727,1228.0,1226.3,0.52074027]
[1760117199633,0.14180727,1228.0,1225.9,0.59965835]
[1760117199832,0.14180727,1228.0,1226.0,0.52081007]
[1760117200029,0.14180727,1228.0,1226.1,0.52081007]
[1760117200229,0.14180727,1228.0,1226.2,0.52081007]
[1760117200427,0.14180727,1228.0,1225.8,0.59965835]
[1760117200631,0.14180727,1228.0,1225.9,0.52090279]
[1760117200928,0.14180727,1228.0,1226.0,0.52090279]
[1760117201132,0.14180727,1228.0,1226.1,0.52090279]
[1760117201329,0.14180727,1228.0,1226.2,0.52090279]
[1760117201532,0.14180727,1228.0,1225.8,0.59965835]
[1760117201730,0.14180727,1228.0,1225.9,0.5209016]
[1760117202030,0.14180727,1228.0,1226.0,0.5209016]
[1760117202228,0.14180727,1228.0,1226.1,0.5209016]
[1760117202432,0.14180727,1228.0,1226.2,0.5209016]
[1760117202632,0.14180727,1228.0,1225.7,0.59965835]
[1760117202830,0.14180727,1228.0,1225.8,0.52095121]
[1760117203034,0.14180727,1228.0,1225.9,0.52095121]
[1760117203235,1.31735247,1228.0,1226.0,0.52095121]
[1760117203434,1.31735247,1228.0,1225.5,0.59965835]
[1760117203632,1.31735247,1228.0,1225.6,0.52103106]
[1760117203831,1.31735247,1228.0,1225.2,0.14178387]
[1760117203832,1.1755452,1227.9,1225.7,0.52103106]
[1760117204037,0.14180727,1228.0,1225.8,0.52103106]
[1760117204239,0.14180727,1228.0,1225.9,0.52103106]
[1760117204542,0.14180727,1228.0,1226.0,0.52103106]
[1760117204742,0.14180727,1228.0,1225.4,0.59965835]
[1760117205042,0.14180727,1228.0,1225.5,0.52114262]
[1760117205239,0.14180727,1228.0,1225.6,0.52114262]
[1760117205440,1.31735247,1228.0,1225.7,0.52114262]
[1760117205638,1.1755452,1227.8,1225.8,0.52114262]
[1760117205941,1.1755452,1227.8,1225.3,0.59965835]
[1760117206141,1.1755452,1227.9,1225.4,0.52121754]
[1760117206344,1.1755452,1227.8,1225.5,0.52121754]
[1760117206539,1.1755452,1227.9,1225.6,0.52121754]
[1760117206838,1.1755452,1227.9,1225.1,0.59965835]
[1760117207038,1.1755452,1227.9,1225.2,0.52125858]
[1760117207243,1.1755452,1227.9,1225.3,0.52125858]
[1760117207438,1.1755452,1227.9,1225.4,0.52125858]
[1760117207642,1.1755452,1227.9,1225.5,0.52125858]
[1760117207845,1.1755452,1227.6,1225.1,0.59965835]
[1760117208141,1.1755452,1227.6,1225.2,0.52126526]
[1760117208341,1.1755452,1227.9,1225.3,0.52126526]
[1760117208642,1.1755452,1227.9,1225.4,0.52126526]
[1760117208844,1.1755452,1227.6,1224.7,0.74788064]
[1760117209044,1.1755452,1227.4,1224.8,1.12726884]
[1760117209340,1.1755452,1227.4,1224.9,0.52132155]
[1760117209541,1.1755452,1227.4,1225.0,0.52132155]
[1760117209740,1.1755452,1227.4,1225.1,0.52132155]
[1760117209944,1.1755452,1227.4,1224.7,0.60594729]
[1760117210145,1.1755452,1227.4,1224.8,0.52111875]
[1760117210345,1.1755452,1227.4,1224.9,0.52111875]
[1760117210546,1.1755452,1227.4,1225.0,0.52111875]
[1760117210845,1.1755452,1227.5,1225.1,0.52111875]
[1760117211043,1.1755452,1227.4,1224.7,0.60594729]
[1760117211240,1.1755452,1227.5,1224.8,0.5206407]
[1760117211540,1.1755452,1227.8,1224.9,0.5206407]
[1760117211742,1.1755452,1227.8,1225.0,0.5206407]
[1760117211946,1.1755452,1227.8,1225.1,0.5206407]
[1760117212241,1.1755452,1227.8,1225.2,0.5206407]
[1760117212543,1.1755452,1227.8,1224.6,0.60594729]
[1760117212745,1.1755452,1227.8,1224.7,0.52051172]
[1760117212942,1.1755452,1227.4,1224.8,0.52051172]
[1760117213245,1.1755452,1227.4,1224.9,0.52051172]
[1760117213440,1.1755452,1227.4,1224.5,0.94444873]
[1760117213441,1.1755452,1227.3,1225.0,0.52051172]
[1760117213644,1.1755452,1227.3,1224.6,0.60594729]
[1760117213841,1.1755452,1227.1,1224.7,0.52038373]
[1760117214042,1.1755452,1227.1,1224.8,0.52038373]
[1760117214245,1.1755452,1227.2,1224.5,0.14195825]
[1760117214441,1.1755452,1227.2,1224.6,0.52010335]
[1760117214745,1.1755452,1227.2,1224.7,0.52010335]
[1760117214940,1.1755452,1227.2,1224.8,0.52010335]
[1760117215139,1.1755452,1227.2,1224.5,0.14195825]
[1760117215340,1.1755452,1227.2,1224.6,0.51986534]
[1760117215541,1.1755452,1227.2,1224.7,0.51986534]
[1760117215840,1.1755452,1227.2,1224.8,0.51986534]
[1760117216145,1.1755452,1227.2,1224.5,0.14195825]
[1760117216345,1.1755452,1227.3,1224.6,0.5191933]
[1760117216544,1.1755452,1227.4,1224.7,0.5191933]
[1760117216742,1.1755452,1227.4,1224.8,0.5191933]
[1760117216948,1.1755452,1227.4,1224.5,0.14195825]
[1760117217140,1.1755452,1227.4,1224.6,0.51915674]
[1760117217345,1.1755452,1227.4,1224.7,0.51915674]
[1760117217543,1.1755452,1227.4,1224.8,0.51915674]
[1760117217744,1.1755452,1227.4,1224.5,0.14195825]
[1760117217946,1.1755452,1227.4,1224.6,0.51889925]
[1760117218243,1.1755452,1227.5,1224.7,0.51889925]
[1760117218445,1.1755452,1227.5,1224.8,0.51889925]
[1760117218647,1.1755452,1227.5,1224.5,0.14195825]
[1760117218845,1.1755452,1227.7,1224.6,0.5186577]
[1760117219043,1.1755452,1227.8,1224.7,0.5186577]
[1760117219244,1.1755452,1227.8,1224.5,0.14195825]
[1760117219245,1.1755452,1227.7,1224.8,0.5186577]
[1760117219544,1.1755452,1227.8,1224.9,0.5186577]
[1760117219744,1.1755452,1227.8,1225.0,0.5186577]
[1760117219948,1.1755452,1227.8,1225.1,0.5186577]
[1760117220243,1.1755452,1227.8,1224.7,0.60594729]
[1760117220448,1.1755452,1227.7,1224.8,0.51838529]
[1760117220648,1.1755452,1227.7,1224.9,0.51838529]
[1760117220848,1.1755452,1227.7,1224.5,0.74790554]
[1760117221046,1.1755452,1227.7,1224.6,0.51845507]
[1760117221250,1.1755452,1227.7,1224.7,0.51845507]
[1760117221552,1.1755452,1227.7,1224.8,0.51845507]
[1760117221749,1.1755452,1227.7,1224.9,0.51845507]
[1760117221950,1.1755452,1227.7,1224.5,0.74790554]
[1760117222146,1.1755452,1227.7,1224.6,0.51829746]
[1760117222350,1.1755452,1227.7,1224.7,0.51829746]
[1760117222650,1.1755452,1227.6,1224.8,0.51829746]
[1760117222950,1.1755452,1227.6,1224.5,0.14195825]
[1760117223147,1.1755452,1227.7,1224.6,0.51819597]
[1760117223348,1.1755452,1227.6,1224.7,0.51819597]
[1760117223552,1.1755452,1227.6,1224.8,0.51819597]
[1760117223751,1.1755452,1227.7,1224.9,0.51819597]
[1760117224049,1.1755452,1227.6,1224.5,0.74790554]
[1760117224252,1.1755452,1227.8,1224.6,0.51797453]
[1760117224448,1.1755452,1227.8,1224.7,0.51797453]
[1760117224752,1.1755452,1227.9,1224.8,0.51797453]
[1760117224952,1.1755452,1227.9,1224.9,0.51797453]
[1760117225249,1.1755452,1227.9,1225.0,0.51797453]
[1760117225549,0.14180727,1228.0,1225.1,0.51779533]
[1760117225749,0.14180727,1228.0,1225.2,0.51779533]
[1760117225948,0.14180727,1228.0,1224.7,0.60594729]
[1760117226151,0.14180727,1228.0,1224.8,0.51775332]
[1760117226349,0.14180727,1228.0,1224.9,0.51775332]
[1760117226548,0.14180727,1228.0,1225.0,0.51775332]
[1760117226748,0.14180727,1228.0,1225.1,0.51775332]
[1760117226948,0.14180727,1228.0,1225.2,0.51775332]
[1760117227250,0.14180727,1228.0,1224.7,0.60594729]
[1760117227448,0.14180727,1228.0,1224.8,0.51769504]
[1760117227654,0.14180727,1228.0,1224.9,0.51769504]
[1760117227850,0.14180727,1228.0,1225.0,0.51769504]
[1760117228049,0.14180727,1228.0,1225.1,0.51769504]
[1760117228253,0.14180727,1228.0,1225.2,0.51769504]
[1760117228549,0.14180727,1228.0,1224.5,0.14195825]
[1760117228751,0.14180727,1228.0,1224.6,0.51776815]
[1760117228949,0.14180727,1228.0,1224.7,0.51776815]
[1760117229149,0.14180727,1228.0,1224.8,0.51776815]
[1760117229351,0.14180727,1228.0,1224.9,0.51776815]
[1760117229553,1.1755452,1227.9,1225.0,0.51765489]
[1760117229752,1.1755452,1227.9,1224.5,0.74790554]
[1760117230053,1.1755452,1227.8,1224.6,1.12359817]
[1760117230250,1.1755452,1227.8,1224.7,1.12359817]
[1760117230451,1.1755452,1227.8,1224.8,0.51765088]
[1760117230653,0.14180727,1228.0,1224.9,0.51765088]
[1760117230854,0.14180727,1228.0,1225.0,0.51765088]
[1760117231056,0.14180727,1228.0,1225.1,0.51765088]
[1760117231255,0.14180727,1228.0,1225.2,0.51765088]
[1760117231554,0.14180727,1228.0,1225.3,0.51765088]
[1760117231753,0.14180727,1228.0,1225.4,0.51765088]
[1760117231950,0.14180727,1228.0,1225.5,0.51765088]
[1760117232154,0.14180727,1228.0,1224.9,0.60594729]
[1760117232354,0.14180727,1228.0,1225.0,1.12341172]
[1760117232552,0.14180727,1228.0,1225.1,0.51746443]
[1760117232752,0.14180727,1228.0,1225.2,0.51746443]
[1760117232951,0.14180727,1228.0,1225.3,0.51746443]
[1760117233155,0.14180727,1228.0,1225.4,0.51746443]
[1760117233456,0.14180727,1228.0,1225.5,0.51746443]
[1760117233651,0.14180727,1228.0,1225.0,0.60594729]
[1760117233851,0.14180727,1228.0,1225.1,0.51747176]
[1760117234052,0.14180727,1228.0,1225.2,0.51747176]
[1760117234255,0.14180727,1228.0,1225.3,0.51747176]
[1760117234456,0.14180727,1228.0,1224.8,0.60594729]
[1760117234751,0.14180727,1228.0,1224.9,0.51752101]
[1760117234952,0.14180727,1228.0,1225.0,0.51752101]
[1760117235157,0.14180727,1228.0,1225.1,0.51752101]
[1760117235357,0.14180727,1228.0,1225.2,0.51752101]
[1760117235553,0.14180727,1228.0,1225.3,0.51752101]
[1760117235757,0.14180727,1228.0,1224.7,0.60594729]
[1760117235958,0.14180727,1228.0,1224.8,0.5175339]
[1760117236259,0.14180727,1228.0,1224.9,0.5175339]
[1760117236454,0.14180727,1228.0,1225.0,0.5175339]
[1760117236758,0.14180727,1228.0,1225.1,0.5175339]
[1760117236957,0.14180727,1228.0,1225.2,0.5175339]
[1760117237155,0.14180727,1228.0,1224.8,0.60594729]
[1760117237357,0.14180727,1228.0,1224.9,0.51750493]
[1760117237657,0.14180727,1228.0,1225.0,0.51750493]
[1760117237855,0.14180727,1228.0,1225.1,0.51750493]
[1760117238057,0.14180727,1228.0,1225.2,0.51750493]
[1760117238261,0.14180727,1228.0,1225.3,0.51750493]
[1760117238560,0.14180727,1228.0,1225.4,0.51750493]
[1760117238760,0.14180727,1228.0,1224.9,0.60594729]
[1760117238961,0.14180727,1228.0,1225.0,1.1233762]
[1760117239161,0.14180727,1228.0,1225.1,0.51742891]
[1760117239456,0.14180727,1228.0,1225.2,0.51742891]
[1760117239660,0.14180727,1228.0,1225.3,0.51742891]
[1760117239857,0.14180727,1228.0,1225.4,0.51742891]
[1760117240061,0.14180727,1228.0,1225.5,0.51742891]
[1760117240257,0.14180727,1228.0,1225.0,0.60594729]
[1760117240563,0.14180727,1228.0,1225.1,1.1233511]
[1760117240760,0.14180727,1228.0,1225.2,0.51740381]
[1760117240958,0.14180727,1228.0,1225.3,0.51740381]
[1760117241157,0.14180727,1228.0,1225.4,0.51740381]
[1760117241461,0.14180727,1228.0,1225.5,0.51740381]
[1760117241659,0.14180727,1228.0,1225.6,0.51740381]
[1760117241862,0.14180727,1228.0,1225.1,0.60594729]
[1760117242060,0.14180727,1228.0,1225.2,0.51750538]
[1760117242260,0.14180727,1228.0,1224.9,0.80249048]
[1760117242559,0.14180727,1228.0,1225.1,0.60227443]
[1760117242762,0.14180727,1228.0,1225.2,0.5176632]
[1760117242960,0.14180727,1228.0,1225.3,0.5176632]
[1760117243161,0.14180727,1228.0,1225.4,0.5176632]
[1760117243364,0.14180727,1228.0,1225.5,0.5176632]
[1760117243659,0.14180727,1228.0,1225.6,0.5176632]
[1760117243862,0.14180727,1228.0,1225.3,0.60227443]
[1760117244061,0.14180727,1228.0,1225.4,0.5178257]
[1760117244260,0.14180727,1228.0,1225.5,0.5178257]
[1760117244463,0.14180727,1228.0,1225.6,0.5178257]
[1760117244660,0.14180727,1228.0,1225.7,0.5178257]
[1760117244865,0.14180727,1228.0,1225.3,0.60227443]
[1760117245063,0.14180727,1228.0,1225.4,1.12030764]
[1760117245263,0.14180727,1228.0,1225.5,0.51803321]
[1760117245463,0.14180727,1228.0,1225.6,0.51803321]
[1760117245764,0.14180727,1228.0,1225.7,0.51803321]
[1760117245966,0.14180727,1228.0,1225.8,0.51803321]
[1760117246168,0.14180727,1228.0,1225.4,0.60227443]
[1760117246367,0.14180727,1228.0,1225.5,0.51882566]
[1760117246567,0.14180727,1228.0,1225.6,0.51882566]
[1760117246868,0.14180727,1228.0,1225.7,0.51882566]
[1760117247168,1.31735247,1228.0,1225.2,0.60227443]
[1760117247463,1.31735247,1228.0,1225.3,0.51915167]
[1760117247667,1.31735247,1228.0,1225.4,0.51915167]
[1760117247863,0.14180727,1228.0,1225.5,0.51915167]
[1760117248164,0.14180727,1228.0,1225.6,0.51915167]
[1760117248364,0.14180727,1228.0,1225.7,0.51915167]
[1760117248666,0.14180727,1228.0,1225.2,0.60227443]
[1760117248864,0.14180727,1228.0,1225.3,0.51940699]
[1760117249069,0.14180727,1228.0,1225.4,0.51940699]
[1760117249269,0.14180727,1228.0,1225.5,0.51940699]
[1760117249566,0.14180727,1228.0,1225.6,0.51940699]
[1760117249769,0.14180727,1228.0,1225.7,0.51940699]
[1760117249968,0.14180727,1228.0,1225.2,0.60227443]
[1760117250170,0.14180727,1228.0,1225.3,0.51964121]
[1760117250370,1.31735247,1228.0,1225.4,0.51964121]
[1760117250566,1.31735247,1228.0,1225.5,0.51964121]
[1760117250770,1.31735247,1228.0,1225.6,0.51964121]
[1760117251071,0.14180727,1228.0,1225.7,0.51986471]
[1760117251270,0.14180727,1228.0,1225.8,0.51986471]
[1760117251471,0.14180727,1228.0,1225.3,0.60227443]
[1760117251671,0.14180727,1228.0,1225.4,0.52001483]
[1760117251965,0.14180727,1228.0,1225.5,0.52001483]
[1760117252164,0.14180727,1228.0,1225.6,0.52001483]
[1760117252371,0.14180727,1228.0,1225.7,0.52001483]
[1760117252566,0.14180727,1228.0,1225.8,0.52001483]
[1760117252767,0.14180727,1228.0,1225.9,0.52001483]
[1760117252970,0.14180727,1228.0,1226.0,0.52001483]
[1760117253165,0.14180727,1228.0,1226.1,0.52001483]
[1760117253371,0.14180727,1228.0,1225.4,0.60227443]
[1760117253571,0.14180727,1228.0,1225.5,0.52023664]
[1760117253770,0.14180727,1228.0,1225.6,0.52023664]
[1760117253967,0.14180727,1228.0,1225.7,0.52023664]
[1760117254170,0.14180727,1228.0,1225.8,0.52023664]
[1760117254368,0.14180727,1228.0,1225.9,0.52023664]
[1760117254669,0.14180727,1228.0,1226.0,0.52023664]
[1760117254873,0.14180727,1228.0,1225.6,0.60227443]
[1760117255073,0.14180727,1228.0,1225.7,0.52030225]
[1760117255368,0.14180727,1228.0,1225.8,0.52030225]
[1760117255573,0.14180727,1228.0,1225.9,0.52030225]
[1760117255773,0.14180727,1228.0,1226.0,0.52030225]
[1760117255973,0.14180727,1228.0,1225.6,0.60227443]
[1760117256173,0.14180727,1228.0,1225.7,0.52035694]
[1760117256372,0.14180727,1228.0,1225.6,0.60227443]
[1760117256373,0.14180727,1228.0,1225.8,0.52035694]
[1760117256570,0.14180727,1228.0,1225.9,0.52035694]
[1760117256770,0.14180727,1228.0,1226.0,0.52035694]
[1760117256974,0.14180727,1228.0,1225.6,0.60227443]
[1760117257170,0.14180727,1228.0,1225.7,0.52040829]
[1760117257374,0.14180727,1228.0,1225.8,0.52040829]
[1760117257573,0.14180727,1228.0,1225.9,0.52040829]
[1760117257775,0.14180727,1228.0,1226.0,0.52040829]
[1760117257974,0.14180727,1228.0,1226.1,0.52040829]
[1760117258173,0.14180727,1228.0,1225.5,0.60227443]
[1760117258372,0.14180727,1228.0,1225.6,0.52063442]
[1760117258672,0.14180727,1228.0,1225.5,0.60227443]
[1760117258673,0.14180727,1228.0,1225.7,0.52063442]
[1760117258875,0.14180727,1228.0,1225.8,0.52063442]